Cogmind - Beta 10.2 *** ADVENTURER MODE // 2021.09.26 @ 21:19:59 Player: Jezoensis Result: Self-destructed Performance ------------- Evolutions (1) 500 Regions Visited (5) 1000 Robots Destroyed (26) 130 Value Destroyed (371) 371 Prototype IDs (1) 20 Alien Tech Used (0) 0 Bonus (0) 0 TOTAL SCORE: 2021 Bonus ------- None Cogmind --------- Core Integrity 348/400 Matter 290/300 Energy 125/125 System Corruption 0% Temperature Cool (0) Movement Walking (120) Location -9/Exiles Parts ------- > --- POWER (1) -------- Light Ion Engine > --- PROPULSION (3) --- Aluminum Leg Aluminum Leg Aluminum Leg > --- UTILITY (3) ------ Medium Storage Unit Improved Terrain Scanner Seismic Analyzer > --- WEAPON (2) ------- Medium Laser Assault Rifle > --- INVENTORY (8) ---- Ion Engine Aluminum Leg Large Storage Unit Large Storage Unit Small Laser Mining Laser Peak State ------------ > --- POWER ------------ Ion Engine > --- PROPULSION ------- Aluminum Leg Aluminum Leg > --- UTILITY ---------- Medium Storage Unit Bomb Drone Bay > --- WEAPON ----------- Heavy EM Pulse Gun Assault Rifle > --- INVENTORY -------- Ion Engine Large Storage Unit Large Storage Unit Improved Terrain Scanner Medium Laser Small Laser Mining Laser [Rating: 21] Favorites ----------- Power Ion Engine Engine Ion Engine Propulsion Aluminum Leg Leg Aluminum Leg Utility Medium Storage Unit Device Improved Terrain Scanner Storage Medium Storage Unit Processor Seismic Analyzer Weapon Assault Rifle Energy Gun Medium Laser Ballistic Gun Assault Rifle Special Weapon Mining Laser Build | -11 -10 -10 -9 -9 -9 ------- Run | Scr Mat Min Mat Min Exi Slots Evolved 2 | . . . 2 . . Power . | . . . . . . Propulsion 1 | . . . 1 . . Utility 1 | . . . 1 . . Weapon . | . . . . . . Parts Attached 22 | 7 3 2 1 9 . Power 3 | 1 . . . 2 . Engine 3 | 1 . . . 2 . Core . | . . . . . . Reactor . | . . . . . . Propulsion 4 | 2 . . . 2 . Treads . | . . . . . . Leg 4 | 2 . . . 2 . Wheel . | . . . . . . Hover . | . . . . . . Flight . | . . . . . . Utility 8 | 2 1 1 . 4 . Device 5 | 1 . 1 . 3 . Storage 2 | 1 1 . . . . Processor 1 | . . . . 1 . Hackware . | . . . . . . Protection . | . . . . . . Artifact . | . . . . . . Weapon 7 | 2 2 1 1 1 . Energy Gun 5 | 1 1 1 1 1 . Energy Cannon . | . . . . . . Ballistic Gun 1 | 1 . . . . . Ballistic Cannon . | . . . . . . Launcher . | . . . . . . Special Weapon 1 | . 1 . . . . Impact Weapon . | . . . . . . Slashing Weapon . | . . . . . . Piercing Weapon . | . . . . . . Special Melee Weapon . | . . . . . . Unidentified Prototypes 1 | . . . . 1 . Parts Lost 5 | . . 1 . 4 . Power 1 | . . . . 1 . Propulsion 1 | . . . . 1 . Utility 1 | . . . . 1 . Weapon 2 | . . 1 . 1 . Highest Loss Streak 2 | . . 1 . 2 . Average Slot Usage (%) 88 | . 100 96 77 86 100 Engine 11 | . 14 14 11 10 11 Leg 26 | . 28 28 22 26 33 Device 10 | . 14 10 11 9 11 Storage 11 | . 14 14 11 11 11 Processor 3 | . . . . 5 11 Energy Gun 11 | . 13 14 11 11 11 Ballistic Gun 11 | . 14 14 11 11 11 Naked Turns . | . . . . . . Heaviest Build 19 | 14 18 18 19 19 16 Greatest Support 30 | 20 20 20 20 30 30 Greatest Overweight (x) 1 | . . . . 1 . Average Overweight (x) . | . . . . . . Largest Inventory Capacity 8 | 6 8 8 8 8 8 Average Capacity 7 | 5 7 8 8 8 8 Most Carried 7 | 3 6 7 6 7 6 Average Carried 5 | 2 4 5 5 5 6 Final Capacity 8 | 6 8 8 8 8 8 Final Carried 6 | 3 6 5 6 6 6 Class Distribution -------------------- 100% | Mutant Dominant Class ---------------- Mutant | -10/Materials Mutant | -10/Mines Mutant | -9/Materials Mutant | -9/Mines Mutant | -9/Exiles Resources | -11 -10 -10 -9 -9 -9 ----------- Run | Scr Mat Min Mat Min Exi Matter Collected 559 | 300 22 68 . 169 . Remotely . | . . . . . . Salvage Created 793 | 181 54 67 57 434 . Parts 63 | 16 5 1 1 40 . Haulers Intercepted 1 | . 1 . . . . Recyclers Shooed . | . . . . . . Parts Field Recycled . | . . . . . . Retrieved Matter . | . . . . . . Parts Self-Destructed . | . . . . . . Prevented . | . . . . . . Kills | -11 -10 -10 -9 -9 -9 ------- Run | Scr Mat Min Mat Min Exi Combat Hostiles Destroyed 14 | . . 1 1 12 . Guns 14 | . . 1 1 12 . Classes Destroyed 7 | 2 1 . 1 3 . Worker 1 | . . . . 1 . Tunneler 9 | 5 . . . 4 . Hauler 1 | . 1 . . . . Recycler 1 | 1 . . . . . Swarmer 7 | . . . . 7 . Grunt 5 | . . . . 5 . Sentry 1 | . . . 1 . . Best Kill Streak 4 | 4 1 1 1 4 . Combat Bots Only 4 | . . 1 1 4 . Max Kills in Single Turn 2 | 1 1 1 1 2 . Gunslinging 1 | . . . . 1 . Exploded . | . . . . . . Melee . | . . . . . . Uniques/NPCs Destroyed 1 | . . 1 . . . YI-UF0 (-10/Mines) Combat | -11 -10 -10 -9 -9 -9 -------- Run | Scr Mat Min Mat Min Exi Damage Taken 553 | . . 268 . 285 . Core 122 | . . 70 . 52 . Absorbed by Shields . | . . . . . . Core Remaining (%) 86 | 100 . 72 . . . Volleys Fired 59 | 10 7 10 3 29 . Largest 2 | 2 2 2 2 2 . Hottest 100 | 70 100 70 65 70 . Shots Fired 117 | 20 13 20 6 58 . Gun 116 | 20 12 20 6 58 . Cannon . | . . . . . . Launcher . | . . . . . . Special 1 | . 1 . . . . Kinetic 58 | 10 6 10 3 29 . Thermal 34 | 10 7 10 . 7 . Explosive . | . . . . . . Electromagnetic 25 | . . . 3 22 . Robot Hit Streak 23 | 8 10 14 3 23 . Robot Miss Streak 3 | 1 3 1 1 3 . Penetration Max . | . . . . . . Secondary Targets 6 | . . . . 6 . Max Gunslinging Chain 1 | . . . . 1 . Shots Hit Robots 88 | 16 8 16 5 43 . Core Hits 40 | 7 2 6 3 22 . Critical Hits 1 | . . 1 . . . Critical Kills . | . . . . . . Critical Parts Destroyed 1 | . . 1 . . . Melee Attacks . | . . . . . . Impact . | . . . . . . Slashing . | . . . . . . Piercing . | . . . . . . Sneak Attacks . | . . . . . . Combat Hostiles . | . . . . . . Follow-up Attacks . | . . . . . . Damage Inflicted 1161 | 187 89 204 62 619 . Guns 1161 | 187 89 204 62 619 . Cannons . | . . . . . . Explosions . | . . . . . . Melee . | . . . . . . Ramming . | . . . . . . Kinetic 510 | 74 40 102 24 270 . Thermal 338 | 113 49 102 . 74 . Explosive . | . . . . . . Electromagnetic 313 | . . . 38 275 . Impact . | . . . . . . Slashing . | . . . . . . Piercing . | . . . . . . Highest Corruption . | . . . . . . Average Corruption . | . . . . . . Corruption Purged . | . . . . . . Overload Shots . | . . . . . . Overflow Damage . | . . . . . . Projectiles . | . . . . . . Explosions . | . . . . . . Melee . | . . . . . . Knockbacks . | . . . . . . Impact . | . . . . . . Kinetic . | . . . . . . Secondary . | . . . . . . Self-Inflicted Damage . | . . . . . . Shots . | . . . . . . Rammed . | . . . . . . Targets Rammed . | . . . . . . Kicked . | . . . . . . Crushed . | . . . . . . Highest Temperature 43 | 27 20 43 . 28 . Average Temperature 13 | 11 10 19 . 13 . Received Heat Transfer 99 | . . 15 . 84 . Siege Activations . | . . . . . . Robots Corrupted . | . . . . . . Combat Hostiles . | . . . . . . Parts Fried . | . . . . . . Impact Corruptions . | . . . . . . Robots Melted . | . . . . . . Combat Hostiles . | . . . . . . Parts Melted 2 | . . 1 . 1 . Heat Transferred 999 | 333 148 296 . 222 . Parts Sabotaged . | . . . . . . Parts Stolen . | . . . . . . Parts Stripped . | . . . . . . Power Chain Reactions . | . . . . . . Missiles Intercepted . | . . . . . . Alert | -11 -10 -10 -9 -9 -9 ------- Run | Scr Mat Min Mat Min Exi Peak Influence 264 | 30 43 13 76 264 . Initial 24 | . 16 13 . 24 . Average 82 | 11 26 7 32 139 . Maximum Alert Level 1 | . . . . 1 . Low Security (%) 91 | 100 100 100 100 84 . Level 1 8 | . . . . 15 . Level 2 . | . . . . . . Level 3 . | . . . . . . Level 4 . | . . . . . . Level 5 . | . . . . . . High Security . | . . . . . . Max Security . | . . . . . . Squads Dispatched . | . . . . . . Investigation . | . . . . . . Extermination . | . . . . . . Reinforcement . | . . . . . . Assault . | . . . . . . Garrison . | . . . . . . Intercept . | . . . . . . Construction Impeded . | . . . . . . Haulers Reinforced . | . . . . . . Stealth | -11 -10 -10 -9 -9 -9 --------- Run | Scr Mat Min Mat Min Exi Distress Signals 1 | . . . 1 . . Communications Jammed . | . . . . . . Distress Signals . | . . . . . . Times Spotted 21 | . 1 3 5 12 . Peak Tracking Total 4 | . 1 2 4 3 . Tactical Retreats . | . . . . . . Traps | -11 -10 -10 -9 -9 -9 ------- Run | Scr Mat Min Mat Min Exi Traps Triggered . | . . . . . . Indirectly . | . . . . . . Trap Hack Attempts . | . . . . . . Triggered . | . . . . . . Disarmed . | . . . . . . Reprogrammed . | . . . . . . Reused . | . . . . . . Traps Extracted . | . . . . . . Installed . | . . . . . . Triggered . | . . . . . . Machines | -11 -10 -10 -9 -9 -9 ---------- Run | Scr Mat Min Mat Min Exi Machines Disabled . | . . . . . . Max in Single Turn . | . . . . . . Machines Sabotaged . | . . . . . . Garrisons Compromised . | . . . . . . Overloaded Fab Kills . | . . . . . . Fab Network Shutdowns . | . . . . . . Hacking | -11 -10 -10 -9 -9 -9 --------- Run | Scr Mat Min Mat Min Exi Machines Accessed 7 | . 4 . 2 1 . Terminals 6 | . 4 . 2 . . Fabricators . | . . . . . . Repair Stations . | . . . . . . Recycling Units . | . . . . . . Scanalyzers . | . . . . . . Garrison Access . | . . . . . . Total Hacks 26 | . 11 . 14 1 . Successful 18 | . 9 . 8 1 . Failed 8 | . 2 . 6 . . Catastrophic . | . . . . . . Database Lockouts . | . . . . . . Manual 19 | . 8 . 11 . . Terminals 25 | . 11 . 14 . . Fabricators . | . . . . . . Repair Stations . | . . . . . . Recycling Units . | . . . . . . Scanalyzers . | . . . . . . Garrison Access . | . . . . . . Terminal Hacks 9 | . 4 . 4 1 . Part Schematic 1 | . 1 . . . . Open Door 1 | . . . . 1 . Terminal Index 1 | . . . 1 . . Locate Traps 2 | . 1 . 1 . . Hauler Manifests 1 | . . . 1 . . Zone Layout 3 | . 2 . 1 . . Fabricator Hacks . | . . . . . . Repair Station Hacks . | . . . . . . Recycling Unit Hacks . | . . . . . . Scanalyzer . | . . . . . . Garrison Access Hacks . | . . . . . . Unauthorized Hacks 9 | . 5 . 4 . . Terminals 9 | . 5 . 4 . . Track 3 | . 2 . 1 . . Botnet 4 | . 2 . 2 . . Disrupt 1 | . 1 . . . . Operators 1 | . . . 1 . . Fabricators . | . . . . . . Repair Stations . | . . . . . . Recycling Units . | . . . . . . Scanalyzers . | . . . . . . Garrison Access . | . . . . . . Data Cores Recovered . | . . . . . . Used . | . . . . . . Hacking Detections 6 | . 4 . 2 . . Full Trace Events . | . . . . . . Feedback Events . | . . . . . . Feedback Blocked . | . . . . . . Robot Schematics Acquired . | . . . . . . Robots Built . | . . . . . . Matter . | . . . . . . Time . | . . . . . . Total Robot Build Rating . | . . . . . . Part Schematics Acquired 1 | . 1 . . . . Parts Built . | . . . . . . Matter . | . . . . . . Time . | . . . . . . Total Part Build Rating . | . . . . . . Parts Repaired . | . . . . . . Time . | . . . . . . Parts Recycled . | . . . . . . Recycled Matter . | . . . . . . Retrieved Matter . | . . . . . . Retrieved Components . | . . . . . . Parts Scanalyzed . | . . . . . . Part Schematics Acquired . | . . . . . . Parts Damaged . | . . . . . . Bothacking | -11 -10 -10 -9 -9 -9 ------------ Run | Scr Mat Min Mat Min Exi Used RIF Installer . | . . . . . . Robots Hacked . | . . . . . . Non-combat . | . . . . . . Combat . | . . . . . . Robot Hacks Applied . | . . . . . . Relay Couplers Released . | . . . . . . Robots Rewired 1 | . . . . . 1 Allies Hacked . | . . . . . . Hacks Repelled . | . . . . . . Allies | -11 -10 -10 -9 -9 -9 -------- Run | Scr Mat Min Mat Min Exi Total Allies 1 | . . . . . 1 Largest Group . | . . . . . . Highest-Rated Group . | . . . . . . Highest-Rated Ally . | . . . . . . Total Orders . | . . . . . . Ally Attacks . | . . . . . . Total Damage . | . . . . . . Kills . | . . . . . . Allies Corrupted . | . . . . . . Allies Melted . | . . . . . . Intel | -11 -10 -10 -9 -9 -9 ------- Run | Scr Mat Min Mat Min Exi Robot Analysis Total . | . . . . . . Derelict Logs Recovered 2 | . . . . 2 . Drone Launches . | . . . . . . Drone Recoveries . | . . . . . . Exploration | -11 -10 -10 -9 -9 -9 ------------- Run | Scr Mat Min Mat Min Exi Turns Passed 1062 | 96 166 95 132 533 40 Spaces Moved 697 | 47 114 47 100 358 31 Core 6 | 6 . . . . . Treads . | . . . . . . Legs 691 | 41 114 47 100 358 31 Wheels . | . . . . . . Hover . | . . . . . . Flight . | . . . . . . Fastest Speed 50 | 50 120 120 120 120 120 Average Speed 119 | 111 120 120 120 120 120 Slowest Speed 150 | 120 120 120 120 150 120 Overloaded Moves . | . . . . . . Propulsion Burnouts . | . . . . . . Robots Hopped . | . . . . . . Cave-ins Triggered . | . . . . . . Exploration Rate (%) 25 | 3 32 15 17 77 10 Regions Visited 5 Branch Regions 3 Pre-discovered Areas . | . . . . . . Known Exits Taken 1 | . . . . 1 . Unknown Exits Taken 4 | 1 1 1 1 . . Scrap Searched 2 | . . 1 . 1 . Spaces Dug 1 | . 1 . . . . Terrain Destroyed 1 | . 1 . . . . Melee . | . . . . . . Projectile 1 | . 1 . . . . AOE . | . . . . . . Terrain Rammed . | . . . . . . Walls Destroyed . | . . . . . . Machines Disabled . | . . . . . . Actions | -11 -10 -10 -9 -9 -9 --------- Run | Scr Mat Min Mat Min Exi Total 799 | 67 127 66 106 400 33 Wait 10 | . . 7 2 1 . Move 692 | 46 113 46 99 357 31 Hop . | . . . . . . Pick Up 8 | 4 3 . . 1 . Fast Attach 13 | 6 . . 1 6 . Attach 5 | 1 . 2 . 2 . Detach 3 | . . 1 1 1 . Swap 4 | . 3 . . 1 . Drop 3 | . 1 . . 2 . Fire 59 | 10 7 10 3 29 . Melee . | . . . . . . Ram . | . . . . . . Kick . | . . . . . . Crush . | . . . . . . Escape Stasis . | . . . . . . Rewire 2 | . . . . . 2 Trap . | . . . . . . Miscellaneous . | . . . . . . Route ------- -11/Scrapyard -10/Materials (discovered 2 exits: *Mat / [*Min]) -10/Mines -9/Materials -9/Mines (discovered 4 exits: [*Mat x2] / *Exi / [*Zio]) -9/Exiles History --------- Turn | Location | Event 17 | -11/Scrapyard | Discovered new exit (range 14) 97 | -11/Scrapyard | Entered Materials 218 | -10/Materials | Discovered new exit (range 10) 247 | -10/Materials | Discovered new exit (range 9) 263 | -10/Materials | Entered Mines 287 | -10/Mines | Met a Derelict bent on vengeance 311 | -10/Mines | Destroyed YI-UF0 325 | -10/Mines | Build established: Mutant 337 | -10/Mines | Discovered new exit (range 12) 358 | -10/Mines | Entered Materials 358 | -9/Materials | Evolved 2 slots: Propulsion x1, Utility x1 428 | -9/Materials | Discovered new exit (range 9) 490 | -9/Materials | Entered Mines 625 | -9/Mines | Found the Drone Emporium 632 | -9/Mines | Found Prototype Device 632 | -9/Mines | Identified Bomb Drone Bay 698 | -9/Mines | A Derelict revealed a hidden shortcut to a safe place 827 | -9/Mines | Discovered new exit (range 7) 889 | -9/Mines | Discovered new exit (range 8) 923 | -9/Mines | Identified exit to Exiles 1017 | -9/Mines | Deemed a non-threat by the Exiles lab entrance 1023 | -9/Mines | Entered Exiles 1023 | -9/Exiles | Found Exiles lab destroyed 1063 | -9/Exiles | Self-destructed Last Messages --------------- 00862_ Acquired 40 matter. 00863_ Acquired 17 matter. 00889_ EXIT=FOUND 00891_ T-07 Excavator destroyed. 00893_ K-01 Serf collects debris. 00895_ Acquired 3 matter. 00898_ K-01 Serf collects debris. 00912_ T-07 Excavator destroyed. 00919_ Acquired Imp. Terrain Scanner. 00923_ Acquired derelict log, extracted data. Data stored: Factory entrances (x1). 00951_ Imp. Terrain Scanner melted. 00951_ T-07 Excavator destroyed. 00954_ Acquired 12 matter. 00960_ K-01 Serf collects debris. 01017_ "No threat detected, you may enter." LOCATION=EXILES GOAL=ESCAPE 01059_ Attempting to rewire G-34 Mercenary. 01060_ G-34 Mercenary rewired. Map ----- +----------------------------------------------------+ | ?????????????????????????????????????????????????? | | ?????????????????????????????????????????????????? | | ?????????????????????????????????????????????????? | | ?????????????????????????????????????????????????? | | ?????????????????????????????????????????????????? | | ?????????????????????????????????????????????????? | | ?????????????????????????????????????????????????? | | ?????????????????????????????????????????????????? | | ?????????????????????????????????????????????????? | | ?????????????????????????????????????????????????? | | ?????????????????????????????????????????????????? | | ?????????????????????????????????????????????????? | | ?????????????????????????????????????????????????? | | ??????????????????????????#??#????#??#???????????? | | ??????????????????#?????#??#?#????#??????##?? ???? | | ?????????????????#???#?????????????#???#???? ?? | | ????????????????????????????????????#?#?#??# #?# | | ?????????????????????????????#??#?????#??## ##? | | ?????????????????#?????#???????#????#?#??# #? | | ?????????????????????####????????????????# ## | | ????????????????????## ????????#??#???## ?? | | ????????????????????#" ??????????????## #?#? | | ???????????????????## ##????????????# #??? | | ?????????????????### ###????????### #??#? | | ??????????? ??# # ########## #???? | | ??????????????# @g #""""## #?#??? | | ??????????? # ##???? | | ???????????? ##g #?### | | ??????????? ??## ###?? | | ??????????? ????#"""""#### ###? | | ???????????? "????#######??#### ## | | ???????????? ??????????#???#??#?##### | | ??????????????????????#????????#?##?#??### | | ?????????????????????????#??#???????#?#?#### | | ????????????????????##??#????????????#????#### | | ???????????????????????????#???###????#?#???#" | | ????????????????????????#??????#???#???????##### | | ?????????????????????##?#?#??????????????#?###?# | | ?????????????????????????????#?#?????#???##????## | | ?????????????????????????#?????##???????#??#??#?## | | ????????????????????????????????????????????#??#?? | | ?????????????????????????????????????????????????? | | ??????????????????????????????????#??????????#???? | | ?????????????????????????????????????????#???????? | | ??????????????????????????????????#??????????????? | | ?????????????????????????????????????????????????? | | ?????????????????????????????????????????????????? | | ?????????????????????????????????????????????????? | | ???????????????????????????????????????????????#?? | | ?????????????????????????????????????????#???????? | +----------------------------------------------------+ Best States ------------- Heat Dissipation 28 Energy Generation 10 Energy Capacity 250 Matter Stores 300 Matter Capacity 300 Sight Range 16 Terrain Scan Range 16 Terrain Scan Density 60 Resistance: KI 20 Resistance: TH 20 Resistance: EX 20 Resistance: EM 20 Resistance: I 20 Resistance: S 20 Resistance: P 20 Evasion (%) 40 Offensive Hacking 10 Item Schematics ----------------- Lrg. Storage Unit | -10/Materials | Hacked Robot Schematics ------------------ None Fabricated ------------ Nothing Alien Tech Used ----------------- None Achievements -------------- None Challenges ------------ None Game ------ Seed RegenerativeShrapnelAnalyzer Manual? 0 Play Time 00:10:27 Cumulative 319.6 hours Start 2021.09.26 @ 21:09:42 End 2021.09.26 @ 21:19:59 Sessions 1 Manual Loads 0 Difficulty Adventurer Special Mode None Game No. 140 Rogue 28 Adventurer 110 Explorer 2 Win Type - Total 24 Types 21/2/0/0/0/0/0/0/1 Lore% 49 Gallery% 79 Achievement% 54 Wizard Run 0 Options --------- ASCII 0 Keyboard 1 Movement Numpad Keybinds 0 Fullscreen 1 Font 36/TerminusFine Map View 76x50 Tactical HUD 1 Map Filters NONE Filters NONE Steam 1 RUN: 926413b2-39a2-42f1-8edc-ca696b213b36